[Event "Titled Tuesday Blitz April 05 Early 2022"]
[White "Molina, Roberto Junio Brito"]
[Black "Derraugh, Geordie"]
[WhiteFideId "2109450"]
[BlackFideId "2603950"]
[WhiteElo "2432"]
[BlackElo "2116"]
[Result "1-0"]
[Round "06"]
[TimeControl "180+1"]
[Date "2022.04.05"]
[WhiteClock "0:00:15"]
[BlackClock "0:00:19"]

1. d4 {[%clk 0:03:00]}  Nf6 {[%clk 0:02:59]} 2. c4 {[%clk 0:03:00]}  g6 {[%clk 0:02:59]} 3. Nc3 {[%clk 0:03:00]}  d5 {[%clk 0:03:00]} 4. Nf3 {[%clk 0:02:59]}  Bg7 {[%clk 0:03:00]} 5. Qb3 {[%clk 0:02:59]}  dxc4 {[%clk 0:02:59]} 6. Qxc4 {[%clk 0:02:59]}  Nc6 {[%clk 0:03:00]} 7. e4 {[%clk 0:02:52]}  Bg4 {[%clk 0:02:59]} 8. d5 {[%clk 0:02:51]}  Bxf3 {[%clk 0:02:37]} 9. dxc6 {[%clk 0:02:43]}  Bg4 {[%clk 0:02:36]} 10. cxb7 {[%clk 0:02:39]}  Rb8 {[%clk 0:02:36]} 11. f3 {[%clk 0:02:37]}  Be6 {[%clk 0:02:35]} 12. Qa4+ {[%clk 0:02:10]}  Nd7 {[%clk 0:02:33]} 13. Ba6 {[%clk 0:02:05]}  O-O {[%clk 0:02:31]} 14. Be3 {[%clk 0:02:05]}  Nb6 {[%clk 0:02:30]} 15. Qb4 {[%clk 0:01:51]}  Qd6 {[%clk 0:02:16]} 16. Bc5 {[%clk 0:01:49]}  Qc6 {[%clk 0:02:12]} 17. Bxe7 {[%clk 0:01:16]}  Rfe8 {[%clk 0:02:12]} 18. Bb5 {[%clk 0:01:14]}  Qxb7 {[%clk 0:02:09]} 19. Bxe8 {[%clk 0:01:14]}  Rxe8 {[%clk 0:02:08]} 20. O-O {[%clk 0:01:10]}  a5 {[%clk 0:02:03]} 21. Qc5 {[%clk 0:01:09]}  Nc4 {[%clk 0:01:56]} 22. Bh4 {[%clk 0:00:49]}  Qxb2 {[%clk 0:01:51]} 23. Qb5 {[%clk 0:00:31]}  Qxb5 {[%clk 0:01:48]} 24. Nxb5 {[%clk 0:00:32]}  Bxa1 {[%clk 0:01:48]} 25. Rxa1 {[%clk 0:00:32]}  c6 {[%clk 0:01:36]} 26. Nc7 {[%clk 0:00:32]}  Rc8 {[%clk 0:01:37]} 27. Nxe6 {[%clk 0:00:32]}  fxe6 {[%clk 0:01:38]} 28. Rc1 {[%clk 0:00:32]}  Ne5 {[%clk 0:01:34]} 29. Bf6 {[%clk 0:00:32]}  Nd7 {[%clk 0:01:29]} 30. Bc3 {[%clk 0:00:32]}  a4 {[%clk 0:01:28]} 31. Rb1 {[%clk 0:00:31]}  Rb8 {[%clk 0:01:21]} 32. Rd1 {[%clk 0:00:31]}  Nf8 {[%clk 0:01:13]} 33. h4 {[%clk 0:00:31]}  Kf7 {[%clk 0:01:07]} 34. Kf2 {[%clk 0:00:31]}  Ke7 {[%clk 0:01:04]} 35. Ke3 {[%clk 0:00:31]}  Nd7 {[%clk 0:00:58]} 36. g4 {[%clk 0:00:31]}  c5 {[%clk 0:00:56]} 37. h5 {[%clk 0:00:31]}  Nb6 {[%clk 0:00:55]} 38. hxg6 {[%clk 0:00:28]}  hxg6 {[%clk 0:00:56]} 39. Rh1 {[%clk 0:00:28]}  Rg8 {[%clk 0:00:54]} 40. Rh7+ {[%clk 0:00:27]}  Kd6 {[%clk 0:00:54]} 41. Ra7 {[%clk 0:00:22]}  Kc6 {[%clk 0:00:54]} 42. Kf4 {[%clk 0:00:19]}  Rf8+ {[%clk 0:00:52]} 43. Kg3 {[%clk 0:00:19]}  Nc4 {[%clk 0:00:50]} 44. Ra6+ {[%clk 0:00:18]}  Kb5 {[%clk 0:00:45]} 45. Rxe6 {[%clk 0:00:18]}  g5 {[%clk 0:00:41]} 46. Rg6 {[%clk 0:00:15]}  Ne3 {[%clk 0:00:38]} 47. Rxg5 {[%clk 0:00:13]}  Kc4 {[%clk 0:00:38]} 48. Be1 {[%clk 0:00:12]}  Nc2 {[%clk 0:00:35]} 49. Bf2 {[%clk 0:00:12]}  Rc8 {[%clk 0:00:35]} 50. e5 {[%clk 0:00:11]}  Nb4 {[%clk 0:00:35]} 51. a3 {[%clk 0:00:11]}  Nc2 {[%clk 0:00:35]} 52. e6 {[%clk 0:00:12]}  Nxa3 {[%clk 0:00:35]} 53. e7 {[%clk 0:00:12]}  Nb5 {[%clk 0:00:35]} 54. Rxc5+ {[%clk 0:00:12]}  Rxc5 {[%clk 0:00:35]} 55. e8=Q {[%clk 0:00:13]}  Rd5 {[%clk 0:00:32]} 56. Qe2+ {[%clk 0:00:13]}  Kb4 {[%clk 0:00:32]} 57. Be1+ {[%clk 0:00:13]}  Kc5 {[%clk 0:00:32]} 58. Bf2+ {[%clk 0:00:13]}  Kc6 {[%clk 0:00:31]} 59. f4 {[%clk 0:00:14]}  a3 {[%clk 0:00:31]} 60. Qc4+ {[%clk 0:00:14]}  Kd6 {[%clk 0:00:30]} 61. f5 {[%clk 0:00:14]}  Nc7 {[%clk 0:00:19]} 62. Qb4+ {[%clk 0:00:14]}  Ke5 {[%clk 0:00:19]} 63. Qxa3 {[%clk 0:00:14]}  Ne8 {[%clk 0:00:19]} 64. Qe3+ {[%clk 0:00:15]} 1-0


[Site "https://www.chess.com"]

[Event "Titled Tuesday Blitz April 05 Early 2022"]
[White "Noboa Silva, Kevin"]
[Black "Seo, Jung Min"]
[WhiteFideId "3618471"]
[BlackFideId "1734687"]
[WhiteElo "2172"]
[BlackElo "2401"]
[Result "1/2-1/2"]
[Round "06"]
[TimeControl "180+1"]
[Date "2022.04.05"]
[WhiteClock "0:00:05"]
[BlackClock "0:00:03"]

1. d4 {[%clk 0:03:00]}  Nf6 {[%clk 0:03:00]} 2. c4 {[%clk 0:02:56]}  e6 {[%clk 0:03:00]} 3. Nc3 {[%clk 0:02:56]}  Bb4 {[%clk 0:02:59]} 4. e3 {[%clk 0:02:54]}  O-O {[%clk 0:02:59]} 5. Bd3 {[%clk 0:02:54]}  d5 {[%clk 0:02:58]} 6. a3 {[%clk 0:02:53]}  Bxc3+ {[%clk 0:02:59]} 7. bxc3 {[%clk 0:02:54]}  dxc4 {[%clk 0:02:56]} 8. Bxc4 {[%clk 0:02:55]}  c5 {[%clk 0:02:56]} 9. Nf3 {[%clk 0:02:53]}  Qc7 {[%clk 0:02:56]} 10. Be2 {[%clk 0:02:49]}  b6 {[%clk 0:02:54]} 11. O-O {[%clk 0:02:49]}  Ba6 {[%clk 0:02:53]} 12. Re1 {[%clk 0:01:43]}  Bxe2 {[%clk 0:02:52]} 13. Qxe2 {[%clk 0:01:43]}  Nc6 {[%clk 0:02:44]} 14. e4 {[%clk 0:01:41]}  cxd4 {[%clk 0:02:25]} 15. cxd4 {[%clk 0:01:41]}  Rad8 {[%clk 0:02:25]} 16. Bb2 {[%clk 0:01:38]}  Qe7 {[%clk 0:02:18]} 17. Qb5 {[%clk 0:01:24]}  Qd7 {[%clk 0:02:11]} 18. Rad1 {[%clk 0:01:13]}  Na5 {[%clk 0:02:10]} 19. Qg5 {[%clk 0:01:06]}  h6 {[%clk 0:02:02]} 20. Qh4 {[%clk 0:01:06]}  Nc4 {[%clk 0:01:52]} 21. Ba1 {[%clk 0:01:06]}  Nxa3 {[%clk 0:01:39]} 22. d5 {[%clk 0:00:42]}  Nh7 {[%clk 0:01:29]} 23. Ne5 {[%clk 0:00:30]}  Qe8 {[%clk 0:01:14]} 24. d6 {[%clk 0:00:18]}  Nf6 {[%clk 0:00:54]} 25. d7 {[%clk 0:00:06]}  Nxd7 {[%clk 0:00:46]} 26. Nxd7 {[%clk 0:00:06]}  Rxd7 {[%clk 0:00:46]} 27. Qg3 {[%clk 0:00:06]}  f6 {[%clk 0:00:38]} 28. Qxa3 {[%clk 0:00:06]}  Qf7 {[%clk 0:00:38]} 29. Rxd7 {[%clk 0:00:06]}  Qxd7 {[%clk 0:00:39]} 30. Qb3 {[%clk 0:00:07]}  Rd8 {[%clk 0:00:38]} 31. g3 {[%clk 0:00:06]}  Kh8 {[%clk 0:00:37]} 32. h4 {[%clk 0:00:07]}  e5 {[%clk 0:00:37]} 33. Bc3 {[%clk 0:00:07]}  Qd3 {[%clk 0:00:35]} 34. Qb2 {[%clk 0:00:04]}  Rc8 {[%clk 0:00:33]} 35. Rc1 {[%clk 0:00:02]}  Qxe4 {[%clk 0:00:31]} 36. Bd2 {[%clk 0:00:03]}  Rd8 {[%clk 0:00:25]} 37. Rc2 {[%clk 0:00:03]}  Qe2 {[%clk 0:00:19]} 38. Qc1 {[%clk 0:00:03]}  Kh7 {[%clk 0:00:18]} 39. Kg2 {[%clk 0:00:03]}  Qe4+ {[%clk 0:00:17]} 40. Kf1 {[%clk 0:00:03]}  Qh1+ {[%clk 0:00:16]} 41. Ke2 {[%clk 0:00:03]}  Qe4+ {[%clk 0:00:16]} 42. Be3 {[%clk 0:00:03]}  Rd7 {[%clk 0:00:14]} 43. Rd2 {[%clk 0:00:03]}  Re7 {[%clk 0:00:13]} 44. Qc2 {[%clk 0:00:04]}  Qxc2 {[%clk 0:00:12]} 45. Rxc2 {[%clk 0:00:05]}  Kg6 {[%clk 0:00:12]} 46. g4 {[%clk 0:00:05]}  h5 {[%clk 0:00:12]} 47. f3 {[%clk 0:00:05]}  e4 {[%clk 0:00:09]} 48. gxh5+ {[%clk 0:00:04]}  Kxh5 {[%clk 0:00:09]} 49. Rc6 {[%clk 0:00:02]}  Kxh4 {[%clk 0:00:07]} 50. f4 {[%clk 0:00:01]}  Kg4 {[%clk 0:00:07]} 51. Rc8 {[%clk 0:00:01]}  Kf5 {[%clk 0:00:06]} 52. Rg8 {[%clk 0:00:01]}  Rd7 {[%clk 0:00:06]} 53. Ra8 {[%clk 0:00:02]}  Rb7 {[%clk 0:00:06]} 54. Rc8 {[%clk 0:00:01]}  Rd7 {[%clk 0:00:03]} 55. Ra8 {[%clk 0:00:01]}  Ke6 {[%clk 0:00:03]} 56. Rg8 {[%clk 0:00:01]}  Kd5 {[%clk 0:00:03]} 57. Ra8 {[%clk 0:00:01]}  Kc6 {[%clk 0:00:03]} 58. Rc8+ {[%clk 0:00:01]}  Kb5 {[%clk 0:00:02]} 59. Re8 {[%clk 0:00:01]}  a5 {[%clk 0:00:02]} 60. Rxe4 {[%clk 0:00:01]}  a4 {[%clk 0:00:01]} 61. Bd4 {[%clk 0:00:01]}  a3 {[%clk 0:00:01]} 62. Kd3 {[%clk 0:00:01]}  Ra7 {[%clk 0:00:01]} 63. Ke3 {[%clk 0:00:01]}  a2 {[%clk 0:00:01]} 64. Ba1 {[%clk 0:00:02]}  Ra3+ {[%clk 0:00:02]} 65. Kd2 {[%clk 0:00:02]}  Rb3 {[%clk 0:00:02]} 66. Re1 {[%clk 0:00:02]}  Rb1 {[%clk 0:00:03]} 67. Rc1 {[%clk 0:00:02]}  Kb4 {[%clk 0:00:03]} 68. Kc2 {[%clk 0:00:03]}  Rxc1+ {[%clk 0:00:03]} 69. Kxc1 {[%clk 0:00:03]}  Kb3 {[%clk 0:00:04]} 70. f5 {[%clk 0:00:03]}  b5 {[%clk 0:00:04]} 71. Kd2 {[%clk 0:00:04]}  Kc4 {[%clk 0:00:04]} 72. Kc2 {[%clk 0:00:04]}  b4 {[%clk 0:00:04]} 73. Kb2 {[%clk 0:00:03]}  b3 {[%clk 0:00:05]} 74. Ka3 {[%clk 0:00:03]}  Kd5 {[%clk 0:00:04]} 75. Kxb3 {[%clk 0:00:03]}  Ke4 {[%clk 0:00:04]} 76. Kxa2 {[%clk 0:00:04]}  Kxf5 {[%clk 0:00:05]} 77. Kb3 {[%clk 0:00:05]}  g5 {[%clk 0:00:05]} 78. Kc2 {[%clk 0:00:06]}  g4 {[%clk 0:00:04]} 79. Kd2 {[%clk 0:00:06]}  Kg5 {[%clk 0:00:04]} 80. Ke2 {[%clk 0:00:07]}  f5 {[%clk 0:00:05]} 81. Kf2 {[%clk 0:00:07]}  f4 {[%clk 0:00:05]} 82. Bc3 {[%clk 0:00:08]}  Kf5 {[%clk 0:00:05]} 83. Kg2 {[%clk 0:00:08]}  Ke4 {[%clk 0:00:05]} 84. Bb4 {[%clk 0:00:08]}  Ke3 {[%clk 0:00:05]} 85. Bc5+ {[%clk 0:00:08]}  Ke2 {[%clk 0:00:05]} 86. Bd4 {[%clk 0:00:06]}  Kd3 {[%clk 0:00:05]} 87. Bc5 {[%clk 0:00:06]}  Ke2 {[%clk 0:00:05]} 88. Bd4 {[%clk 0:00:06]}  g3 {[%clk 0:00:03]} 89. Bc5 {[%clk 0:00:05]}  f3+ {[%clk 0:00:03]} 90. Kxg3 {[%clk 0:00:05]}  f2 {[%clk 0:00:03]} 91. Bxf2 {[%clk 0:00:05]} 1/2-1/2


[Site "https://www.chess.com"]

[Event "Titled Tuesday Blitz April 05 Early 2022"]
[White "Odegov, Artem"]
[Black "Harshavardhan G B"]
[WhiteFideId "34183644"]
[BlackFideId "25059009"]
[WhiteElo "2286"]
[BlackElo "1831"]
[Result "0-1"]
[Round "06"]
[TimeControl "180+1"]
[Date "2022.04.05"]
[WhiteClock "0:00:02"]
[BlackClock "0:01:05"]

1. d4 {[%clk 0:03:00]}  Nf6 {[%clk 0:02:59]} 2. c4 {[%clk 0:03:01]}  e5 {[%clk 0:02:59]} 3. dxe5 {[%clk 0:03:01]}  Ng4 {[%clk 0:02:59]} 4. Bf4 {[%clk 0:03:01]}  Nc6 {[%clk 0:02:56]} 5. Nf3 {[%clk 0:03:01]}  Bb4+ {[%clk 0:02:54]} 6. Nc3 {[%clk 0:03:01]}  Bxc3+ {[%clk 0:02:53]} 7. bxc3 {[%clk 0:03:02]}  Qe7 {[%clk 0:02:53]} 8. Qd5 {[%clk 0:03:02]}  f6 {[%clk 0:02:49]} 9. exf6 {[%clk 0:03:02]}  Nxf6 {[%clk 0:02:50]} 10. Qd3 {[%clk 0:03:01]}  d6 {[%clk 0:02:50]} 11. g3 {[%clk 0:03:01]}  O-O {[%clk 0:02:49]} 12. Bg2 {[%clk 0:03:01]}  Bg4 {[%clk 0:02:48]} 13. O-O {[%clk 0:03:01]}  Rae8 {[%clk 0:02:47]} 14. Rfe1 {[%clk 0:03:00]}  Kh8 {[%clk 0:02:46]} 15. Rab1 {[%clk 0:02:51]}  b6 {[%clk 0:02:42]} 16. e4 {[%clk 0:02:18]}  Nd7 {[%clk 0:02:30]} 17. Qc2 {[%clk 0:01:11]}  Bxf3 {[%clk 0:02:24]} 18. Bxf3 {[%clk 0:01:12]}  g5 {[%clk 0:02:23]} 19. e5 {[%clk 0:01:07]}  Ncxe5 {[%clk 0:02:17]} 20. Bxe5+ {[%clk 0:01:04]}  Nxe5 {[%clk 0:02:18]} 21. Bg2 {[%clk 0:01:04]}  Qf6 {[%clk 0:02:17]} 22. Re4 {[%clk 0:01:00]}  Nd7 {[%clk 0:02:11]} 23. Rbe1 {[%clk 0:00:59]}  Rxe4 {[%clk 0:02:10]} 24. Rxe4 {[%clk 0:00:59]}  Nc5 {[%clk 0:02:09]} 25. Re2 {[%clk 0:01:00]}  Kg7 {[%clk 0:02:06]} 26. Qd2 {[%clk 0:00:48]}  Rf7 {[%clk 0:02:02]} 27. Qd4 {[%clk 0:00:39]}  Na4 {[%clk 0:02:02]} 28. Re6 {[%clk 0:00:27]}  Qxd4 {[%clk 0:01:58]} 29. cxd4 {[%clk 0:00:27]}  Nc3 {[%clk 0:01:37]} 30. a3 {[%clk 0:00:26]}  Nd1 {[%clk 0:01:32]} 31. Bd5 {[%clk 0:00:18]}  Rf6 {[%clk 0:01:06]} 32. Re7+ {[%clk 0:00:16]}  Kf8 {[%clk 0:01:06]} 33. Rxc7 {[%clk 0:00:13]}  Nxf2 {[%clk 0:01:06]} 34. Rxh7 {[%clk 0:00:11]}  g4 {[%clk 0:01:04]} 35. Rxa7 {[%clk 0:00:07]}  Nh3+ {[%clk 0:01:04]} 36. Kg2 {[%clk 0:00:05]}  Rf2+ {[%clk 0:01:03]} 37. Kh1 {[%clk 0:00:01]}  Rf1+ {[%clk 0:01:04]} 38. Kg2 {[%clk 0:00:02]}  Rg1# {[%clk 0:01:05]} 0-1


[Site "https://www.chess.com"]

[Event "Titled Tuesday Blitz April 05 Early 2022"]
[White "Omariev, Maksim"]
[Black "Matveeva, Olga"]
[WhiteFideId "4193423"]
[BlackFideId "24107018"]
[WhiteElo "2494"]
[BlackElo "2083"]
[Result "1-0"]
[Round "06"]
[TimeControl "180+1"]
[Date "2022.04.05"]
[WhiteClock "0:00:19"]
[BlackClock "0:00:19"]

1. g4 {[%clk 0:03:00]}  d5 {[%clk 0:02:59]} 2. Bg2 {[%clk 0:02:58]}  Bxg4 {[%clk 0:02:58]} 3. c4 {[%clk 0:02:58]}  e6 {[%clk 0:02:56]} 4. Qb3 {[%clk 0:02:51]}  Ne7 {[%clk 0:02:54]} 5. cxd5 {[%clk 0:02:39]}  exd5 {[%clk 0:02:52]} 6. Qxb7 {[%clk 0:02:38]}  Nbc6 {[%clk 0:02:51]} 7. Qb5 {[%clk 0:02:25]}  Rb8 {[%clk 0:02:50]} 8. Qa4 {[%clk 0:02:24]}  Bd7 {[%clk 0:02:48]} 9. Nf3 {[%clk 0:02:13]}  g6 {[%clk 0:02:37]} 10. Qh4 {[%clk 0:01:28]}  Bg7 {[%clk 0:02:35]} 11. d4 {[%clk 0:01:29]}  Nf5 {[%clk 0:02:20]} 12. Qxd8+ {[%clk 0:01:28]}  Kxd8 {[%clk 0:02:17]} 13. e3 {[%clk 0:01:29]}  Re8 {[%clk 0:02:15]} 14. O-O {[%clk 0:01:27]}  Nb4 {[%clk 0:02:10]} 15. Nc3 {[%clk 0:01:17]}  Nd3 {[%clk 0:02:07]} 16. Nxd5 {[%clk 0:01:15]}  Bc6 {[%clk 0:01:58]} 17. Ng5 {[%clk 0:01:13]}  f6 {[%clk 0:01:46]} 18. Nh3 {[%clk 0:00:50]}  Nh4 {[%clk 0:01:45]} 19. Bh1 {[%clk 0:00:48]}  g5 {[%clk 0:01:34]} 20. b3 {[%clk 0:00:45]}  Kd7 {[%clk 0:01:20]} 21. Ba3 {[%clk 0:00:35]}  g4 {[%clk 0:01:11]} 22. Nhf4 {[%clk 0:00:32]}  Nxf4 {[%clk 0:01:09]} 23. Nxf4 {[%clk 0:00:32]}  Nf3+ {[%clk 0:01:07]} 24. Bxf3 {[%clk 0:00:32]}  Bxf3 {[%clk 0:01:07]} 25. Rac1 {[%clk 0:00:32]}  Bf8 {[%clk 0:00:56]} 26. Bxf8 {[%clk 0:00:30]}  Rxf8 {[%clk 0:00:57]} 27. Rc5 {[%clk 0:00:29]}  f5 {[%clk 0:00:51]} 28. Rfc1 {[%clk 0:00:28]}  Rb7 {[%clk 0:00:51]} 29. Nd3 {[%clk 0:00:22]}  Be4 {[%clk 0:00:48]} 30. Ne5+ {[%clk 0:00:22]}  Kd8 {[%clk 0:00:44]} 31. Nc6+ {[%clk 0:00:22]}  Kd7 {[%clk 0:00:43]} 32. Na5 {[%clk 0:00:23]}  Rb6 {[%clk 0:00:38]} 33. Rxc7+ {[%clk 0:00:23]}  Ke6 {[%clk 0:00:37]} 34. Rxh7 {[%clk 0:00:22]}  Ra6 {[%clk 0:00:33]} 35. b4 {[%clk 0:00:21]}  Rb8 {[%clk 0:00:32]} 36. a3 {[%clk 0:00:21]}  Rd6 {[%clk 0:00:29]} 37. Rcc7 {[%clk 0:00:21]}  Ra6 {[%clk 0:00:19]} 38. Rh6+ {[%clk 0:00:19]} 1-0


[Site "https://www.chess.com"]

[Event "Titled Tuesday Blitz April 05 Early 2022"]
[White "Onslow, Alfie"]
[Black "Pourkashiyan, Atousa"]
[WhiteFideId "436976"]
[BlackFideId "12502014"]
[WhiteElo "1884"]
[BlackElo "2247"]
[Result "1-0"]
[Round "06"]
[TimeControl "180+1"]
[Date "2022.04.05"]
[WhiteClock "0:00:48"]
[BlackClock "0:01:01"]

1. e4 {[%clk 0:03:00]}  c5 {[%clk 0:02:59]} 2. Nc3 {[%clk 0:02:59]}  e6 {[%clk 0:03:00]} 3. Nf3 {[%clk 0:02:59]}  a6 {[%clk 0:03:00]} 4. g3 {[%clk 0:02:59]}  b5 {[%clk 0:03:01]} 5. Bg2 {[%clk 0:02:58]}  Bb7 {[%clk 0:03:01]} 6. O-O {[%clk 0:02:53]}  b4 {[%clk 0:03:01]} 7. Na4 {[%clk 0:02:53]}  Bxe4 {[%clk 0:03:02]} 8. d4 {[%clk 0:02:53]}  Bc6 {[%clk 0:03:01]} 9. Nxc5 {[%clk 0:02:51]}  Bxc5 {[%clk 0:03:01]} 10. dxc5 {[%clk 0:02:51]}  Nf6 {[%clk 0:03:02]} 11. Qd6 {[%clk 0:02:48]}  Qe7 {[%clk 0:03:02]} 12. a3 {[%clk 0:02:39]}  Qxd6 {[%clk 0:03:01]} 13. cxd6 {[%clk 0:02:39]}  bxa3 {[%clk 0:03:00]} 14. Rxa3 {[%clk 0:02:38]}  O-O {[%clk 0:02:59]} 15. c4 {[%clk 0:02:32]}  Ne4 {[%clk 0:02:49]} 16. Rd1 {[%clk 0:02:25]}  Nc5 {[%clk 0:02:35]} 17. b4 {[%clk 0:02:21]}  Nb7 {[%clk 0:02:35]} 18. b5 {[%clk 0:02:17]}  Be4 {[%clk 0:02:07]} 19. Be3 {[%clk 0:02:04]}  a5 {[%clk 0:02:01]} 20. c5 {[%clk 0:02:00]}  a4 {[%clk 0:01:58]} 21. Ne5 {[%clk 0:01:32]}  Bxg2 {[%clk 0:01:41]} 22. Kxg2 {[%clk 0:01:33]}  Rc8 {[%clk 0:01:41]} 23. c6 {[%clk 0:01:23]}  dxc6 {[%clk 0:01:39]} 24. d7 {[%clk 0:01:24]}  Nxd7 {[%clk 0:01:26]} 25. bxc6 {[%clk 0:01:20]}  Nxe5 {[%clk 0:01:17]} 26. cxb7 {[%clk 0:01:19]}  Nc4 {[%clk 0:01:15]} 27. bxc8=Q+ {[%clk 0:01:08]}  Rxc8 {[%clk 0:01:15]} 28. Rxa4 {[%clk 0:01:07]}  h5 {[%clk 0:01:14]} 29. h3 {[%clk 0:00:53]}  Rb8 {[%clk 0:01:11]} 30. Rc1 {[%clk 0:00:51]}  Nb2 {[%clk 0:01:06]} 31. Rb1 {[%clk 0:00:49]}  e5 {[%clk 0:01:01]} 32. Ra2 {[%clk 0:00:48]} 1-0


[Site "https://www.chess.com"]

[Event "Titled Tuesday Blitz April 05 Early 2022"]
[White "Perera Alfonso, Rene Humberto"]
[Black "Mikhnenko, Alexander"]
[WhiteFideId "3514722"]
[BlackFideId "34143014"]
[WhiteElo "2313"]
[BlackElo "2117"]
[Result "1-0"]
[Round "06"]
[TimeControl "180+1"]
[Date "2022.04.05"]
[WhiteClock "0:00:12"]
[BlackClock "0:00:42"]

1. e4 {[%clk 0:01:03]}  c5 {[%clk 0:02:53]} 2. Nf3 {[%clk 0:01:01]}  e6 {[%clk 0:02:53]} 3. d4 {[%clk 0:00:52]}  cxd4 {[%clk 0:02:54]} 4. Nxd4 {[%clk 0:00:53]}  Qb6 {[%clk 0:02:42]} 5. Nb3 {[%clk 0:00:49]}  Nc6 {[%clk 0:02:34]} 6. Nc3 {[%clk 0:00:49]}  Nf6 {[%clk 0:02:21]} 7. Bd2 {[%clk 0:00:50]}  Qc7 {[%clk 0:02:14]} 8. Qe2 {[%clk 0:00:43]}  a6 {[%clk 0:02:07]} 9. O-O-O {[%clk 0:00:38]}  b5 {[%clk 0:02:07]} 10. g4 {[%clk 0:00:32]}  h6 {[%clk 0:01:51]} 11. h4 {[%clk 0:00:28]}  Ne5 {[%clk 0:01:31]} 12. Bg2 {[%clk 0:00:27]}  Nc4 {[%clk 0:01:16]} 13. g5 {[%clk 0:00:27]}  Ng8 {[%clk 0:01:14]} 14. g6 {[%clk 0:00:08]}  Nf6 {[%clk 0:01:09]} 15. gxf7+ {[%clk 0:00:09]}  Kxf7 {[%clk 0:01:09]} 16. e5 {[%clk 0:00:09]}  Bb7 {[%clk 0:01:03]} 17. Bxb7 {[%clk 0:00:09]}  Qxb7 {[%clk 0:01:04]} 18. exf6 {[%clk 0:00:09]}  gxf6 {[%clk 0:01:04]} 19. Qh5+ {[%clk 0:00:09]}  Ke7 {[%clk 0:01:04]} 20. Rhe1 {[%clk 0:00:09]}  a5 {[%clk 0:00:57]} 21. Bf4 {[%clk 0:00:09]}  a4 {[%clk 0:00:56]} 22. Nd4 {[%clk 0:00:09]}  b4 {[%clk 0:00:53]} 23. Nf5+ {[%clk 0:00:09]}  Kd8 {[%clk 0:00:51]} 24. Ne4 {[%clk 0:00:10]}  exf5 {[%clk 0:00:49]} 25. Nxf6 {[%clk 0:00:10]}  Be7 {[%clk 0:00:45]} 26. Rxd7+ {[%clk 0:00:10]}  Qxd7 {[%clk 0:00:41]} 27. Nxd7 {[%clk 0:00:11]}  Kxd7 {[%clk 0:00:42]} 28. Qxf5+ {[%clk 0:00:12]}  Ke8 {[%clk 0:00:42]} 29. Qb5+ {[%clk 0:00:12]} 1-0


[Site "https://www.chess.com"]